[Event "*** Titled Tuesday Blitz"]
[Site "Chess.com"]
[Date "2019.05.07"]
[Round "6"]
[White "Kangoroo3000"]
[Black "Berardino"]
[Result "0-1"]
[WhiteElo "2643"]
[BlackElo "2527"]
[TimeControl "180+2"]
[EndTime "14:23:08 PDT"]
[Termination "Berardino won by checkmate"]

1. d4 {[%clk 0:03:01.9]} 1... Nf6 {[%clk 0:02:56.6]} 2. c4 {[%clk 0:03:02.3]}
2... g6 {[%clk 0:02:57.8]} 3. Nc3 {[%clk 0:03:02.6]} 3... Bg7 {[%clk 0:02:59.2]}
4. e4 {[%clk 0:03:02.5]} 4... d6 {[%clk 0:03:01.1]} 5. Be2 {[%clk 0:03:03.1]}
5... O-O {[%clk 0:03:02.5]} 6. Be3 {[%clk 0:03:04.2]} 6... c5 {[%clk 0:02:55.7]}
7. d5 {[%clk 0:03:05]} 7... e6 {[%clk 0:02:50.9]} 8. Nf3 {[%clk 0:03:05.4]} 8...
exd5 {[%clk 0:02:50.7]} 9. cxd5 {[%clk 0:03:06.4]} 9... b5 {[%clk 0:02:06.4]}
10. e5 {[%clk 0:03:05.9]} 10... Ng4 {[%clk 0:02:03]} 11. Bg5 {[%clk 0:03:04.7]}
11... Qb6 {[%clk 0:01:48.4]} 12. exd6 {[%clk 0:02:59]} 12... b4 {[%clk
0:01:44.8]} 13. Ne4 {[%clk 0:02:57.1]} 13... Bf5 {[%clk 0:01:42.2]} 14. Nfd2
{[%clk 0:02:56.2]} 14... f6 {[%clk 0:01:08.5]} 15. Bf4 {[%clk 0:02:54.8]} 15...
Bxe4 {[%clk 0:00:58.7]} 16. Nxe4 {[%clk 0:02:53.3]} 16... f5 {[%clk 0:00:56.5]}
17. Ng5 {[%clk 0:02:49.3]} 17... Bxb2 {[%clk 0:00:41.4]} 18. Ne6 {[%clk
0:02:48]} 18... Bc3+ {[%clk 0:00:38.6]} 19. Bd2 {[%clk 0:02:42.1]} 19... Qxd6
{[%clk 0:00:21.1]} 20. Bxc3 {[%clk 0:02:33.6]} 20... bxc3 {[%clk 0:00:22.2]} 21.
O-O {[%clk 0:02:35.2]} 21... Qxh2# {[%clk 0:00:22.7]} 0-1

[Event "*** Titled Tuesday Blitz"]
[Site "Chess.com"]
[Date "2019.05.07"]
[Round "6"]
[White "FearNoEvil12"]
[Black "aa175"]
[Result "0-1"]
[WhiteElo "2010"]
[BlackElo "1969"]
[TimeControl "180+2"]
[EndTime "14:23:44 PDT"]
[Termination "aa175 won by checkmate"]

1. e4 {[%clk 0:03:01.9]} 1... c5 {[%clk 0:02:59.8]} 2. Nc3 {[%clk 0:03:01.8]}
2... a6 {[%clk 0:02:56]} 3. a4 {[%clk 0:03:00.5]} 3... e6 {[%clk 0:02:57.3]} 4.
f4 {[%clk 0:03:01.5]} 4... Nc6 {[%clk 0:02:58.5]} 5. Nf3 {[%clk 0:03:02.8]} 5...
Nf6 {[%clk 0:03:00]} 6. d3 {[%clk 0:03:01.9]} 6... Be7 {[%clk 0:03:01.2]} 7. g3
{[%clk 0:03:02]} 7... O-O {[%clk 0:03:02]} 8. Bg2 {[%clk 0:03:02.3]} 8... d5
{[%clk 0:03:03.3]} 9. e5 {[%clk 0:03:01.9]} 9... Nd7 {[%clk 0:03:03.4]} 10. O-O
{[%clk 0:03:03.2]} 10... Rb8 {[%clk 0:03:04.3]} 11. Ne2 {[%clk 0:03:01.2]} 11...
b5 {[%clk 0:03:05.3]} 12. axb5 {[%clk 0:03:01.5]} 12... axb5 {[%clk 0:03:07.2]}
13. c3 {[%clk 0:03:01.8]} 13... b4 {[%clk 0:03:06.7]} 14. d4 {[%clk 0:02:59.4]}
14... c4 {[%clk 0:03:04.5]} 15. Kh1 {[%clk 0:02:58]} 15... b3 {[%clk 0:03:02.9]}
16. g4 {[%clk 0:02:55.9]} 16... Re8 {[%clk 0:03:02.1]} 17. Ng3 {[%clk
0:02:55.7]} 17... Nf8 {[%clk 0:03:03.4]} 18. Qe2 {[%clk 0:02:51.4]} 18... Bd7
{[%clk 0:03:04.4]} 19. Be3 {[%clk 0:02:51]} 19... Ra8 {[%clk 0:03:05.6]} 20.
Rae1 {[%clk 0:02:51.4]} 20... Ra2 {[%clk 0:03:06.2]} 21. Bc1 {[%clk 0:02:52.8]}
21... Na7 {[%clk 0:03:02.1]} 22. f5 {[%clk 0:02:50.3]} 22... Nc8 {[%clk
0:02:57.8]} 23. Nh5 {[%clk 0:02:40.1]} 23... exf5 {[%clk 0:02:51.2]} 24. gxf5
{[%clk 0:02:28.3]} 24... Bxf5 {[%clk 0:02:53.1]} 25. Rg1 {[%clk 0:02:26.9]}
25... Ng6 {[%clk 0:02:42.5]} 26. Qf2 {[%clk 0:02:21.6]} 26... Be4 {[%clk
0:02:39.2]} 27. Nd2 {[%clk 0:02:16.3]} 27... Bh4 {[%clk 0:02:34.3]} 28. Qf1
{[%clk 0:02:02.5]} 28... Bd3 {[%clk 0:02:30.6]} 29. Qf3 {[%clk 0:01:55.1]} 29...
Bxe1 {[%clk 0:02:30.1]} 30. Rxe1 {[%clk 0:01:53.7]} 30... Ra1 {[%clk 0:02:28.1]}
31. Rg1 {[%clk 0:01:52.3]} 31... Qg5 {[%clk 0:02:17.1]} 32. Bh3 {[%clk
0:01:35.5]} 32... Rxc1 {[%clk 0:02:15.3]} 33. Rxc1 {[%clk 0:01:33.8]} 33... Qxd2
{[%clk 0:02:12.7]} 34. Rd1 {[%clk 0:01:31.5]} 34... Be4 {[%clk 0:02:10.4]} 35.
Rxd2 {[%clk 0:01:29.2]} 35... Bxf3+ {[%clk 0:02:11.5]} 36. Kg1 {[%clk
0:01:29.3]} 36... Bxh5 {[%clk 0:02:13.4]} 37. Bg2 {[%clk 0:01:26.1]} 37... Nf4
{[%clk 0:02:13.8]} 38. Bh1 {[%clk 0:01:24.7]} 38... Ne7 {[%clk 0:02:11.5]} 39.
Kf2 {[%clk 0:01:25.6]} 39... Nd3+ {[%clk 0:02:11.9]} 40. Kg3 {[%clk 0:01:26.2]}
40... Nf5+ {[%clk 0:02:11.3]} 41. Kh3 {[%clk 0:01:26.3]} 41... Nf4# {[%clk
0:02:11.4]} 0-1

[Event "*** Titled Tuesday Blitz"]
[Site "Chess.com"]
[Date "2019.05.07"]
[Round "6"]
[White "kacprekt"]
[Black "FearlessKing64"]
[Result "1/2-1/2"]
[WhiteElo "2313"]
[BlackElo "2224"]
[TimeControl "180+2"]
[EndTime "14:24:13 PDT"]
[Termination "Game drawn by agreement"]

1. d4 {[%clk 0:03:01.9]} 1... Nf6 {[%clk 0:03:00.4]} 2. c4 {[%clk 0:03:00]} 2...
g6 {[%clk 0:03:01.5]} 3. Nc3 {[%clk 0:03:00.7]} 3... d5 {[%clk 0:03:02.3]} 4.
Qb3 {[%clk 0:02:58.1]} 4... dxc4 {[%clk 0:03:02.4]} 5. Qxc4 {[%clk 0:02:59.7]}
5... Bg7 {[%clk 0:02:59.5]} 6. Bf4 {[%clk 0:03:00.6]} 6... c6 {[%clk 0:02:52.4]}
7. e4 {[%clk 0:03:01.6]} 7... O-O {[%clk 0:02:52.9]} 8. Be2 {[%clk 0:02:59]}
8... b5 {[%clk 0:02:52.4]} 9. Qb3 {[%clk 0:02:58.9]} 9... a5 {[%clk 0:02:52]}
10. a3 {[%clk 0:02:54.8]} 10... Be6 {[%clk 0:02:48.5]} 11. Qd1 {[%clk 0:02:54]}
11... Na6 {[%clk 0:02:43]} 12. Nf3 {[%clk 0:02:54.9]} 12... b4 {[%clk 0:02:43]}
13. axb4 {[%clk 0:02:49]} 13... axb4 {[%clk 0:02:42.4]} 14. Rxa6 {[%clk
0:02:37.9]} 14... Rxa6 {[%clk 0:02:34.8]} 15. Bxa6 {[%clk 0:02:38.4]} 15... bxc3
{[%clk 0:02:36.2]} 16. bxc3 {[%clk 0:02:34.1]} 16... Nxe4 {[%clk 0:02:33.5]} 17.
Qc2 {[%clk 0:02:34.4]} 17... Qa5 {[%clk 0:02:28.3]} 18. O-O {[%clk 0:02:18.7]}
18... Nxc3 {[%clk 0:02:17]} 19. Bd3 {[%clk 0:02:20]} 19... Nd5 {[%clk
0:02:12.2]} 20. Bd2 {[%clk 0:02:15.5]} 20... Qa7 {[%clk 0:01:49.9]} 21. Qxc6
{[%clk 0:02:11.9]} 21... Bxd4 {[%clk 0:01:49.5]} 22. Nxd4 {[%clk 0:02:02.9]}
22... Qxd4 {[%clk 0:01:51.4]} 23. Qc4 {[%clk 0:02:02.8]} 23... Qxc4 {[%clk
0:01:44.6]} 24. Bxc4 {[%clk 0:02:04.7]} 24... Rc8 {[%clk 0:01:45.2]} 25. Bxd5
{[%clk 0:02:03.5]} 25... Bxd5 {[%clk 0:01:47.1]} 26. h4 {[%clk 0:02:00.3]} 26...
f6 {[%clk 0:01:43.8]} 27. Be3 {[%clk 0:01:58.4]} 27... Kf7 {[%clk 0:01:41.7]}
28. Kh2 {[%clk 0:01:59.2]} 28... Rc7 {[%clk 0:01:41.6]} 29. Kg3 {[%clk
0:01:59.9]} 29... e5 {[%clk 0:01:42.1]} 30. Rc1 {[%clk 0:02:00.8]} 30... Rd7
{[%clk 0:01:42]} 31. Rd1 {[%clk 0:01:57.8]} 31... f5 {[%clk 0:01:42]} 32. f4
{[%clk 0:01:54]} 32... e4 {[%clk 0:01:32.3]} 33. Ra1 {[%clk 0:01:49.1]} 33...
Ke6 {[%clk 0:01:24.5]} 34. Ra6+ {[%clk 0:01:49.3]} 34... Rd6 {[%clk 0:01:22.9]}
35. Rxd6+ {[%clk 0:01:49]} 35... Kxd6 {[%clk 0:01:24.8]} 36. Kf2 {[%clk
0:01:48.7]} 36... Kc6 {[%clk 0:01:24.7]} 37. g3 {[%clk 0:01:50.1]} 37... Kb5
{[%clk 0:01:26.1]} 38. Bd4 {[%clk 0:01:50.8]} 38... Kc4 {[%clk 0:01:27.5]} 39.
Be3 {[%clk 0:01:52]} 39... Kd3 {[%clk 0:01:28.6]} 40. Ba7 {[%clk 0:01:53.6]}
40... Bb3 {[%clk 0:01:26.1]} 41. Be3 {[%clk 0:01:54.6]} 41... Bd1 {[%clk
0:01:27.3]} 42. Ba7 {[%clk 0:01:56.1]} 42... Bg4 {[%clk 0:01:28.9]} 43. Be3
{[%clk 0:01:57.4]} 1/2-1/2

[Event "*** Titled Tuesday Blitz"]
[Site "Chess.com"]
[Date "2019.05.07"]
[Round "6"]
[White "jefferyx"]
[Black "Shant_Sargsyan"]
[Result "1/2-1/2"]
[WhiteElo "2912"]
[BlackElo "2961"]
[TimeControl "180+2"]
[EndTime "14:24:42 PDT"]
[Termination "Game drawn by agreement"]

1. d4 {[%clk 0:03:01.9]} 1... Nf6 {[%clk 0:03:00.9]} 2. c4 {[%clk 0:03:03.2]}
2... e6 {[%clk 0:03:02.4]} 3. Nc3 {[%clk 0:03:04.6]} 3... Bb4 {[%clk 0:03:03.5]}
4. Nf3 {[%clk 0:03:06.3]} 4... d5 {[%clk 0:03:04.6]} 5. Qb3 {[%clk 0:03:06.9]}
5... c5 {[%clk 0:03:02.1]} 6. dxc5 {[%clk 0:03:08.8]} 6... Na6 {[%clk
0:03:02.4]} 7. a3 {[%clk 0:03:10.4]} 7... Bxc3+ {[%clk 0:03:02.3]} 8. Qxc3
{[%clk 0:03:12.3]} 8... Nxc5 {[%clk 0:03:03.7]} 9. cxd5 {[%clk 0:03:07.7]} 9...
Qxd5 {[%clk 0:03:05.6]} 10. Be3 {[%clk 0:03:00.8]} 10... Nce4 {[%clk 0:03:06.7]}
11. Qd4 {[%clk 0:03:00.6]} 11... Bd7 {[%clk 0:02:58.8]} 12. Ne5 {[%clk
0:02:56.1]} 12... Qxd4 {[%clk 0:02:52.4]} 13. Bxd4 {[%clk 0:02:57.3]} 13... Bb5
{[%clk 0:02:49]} 14. f3 {[%clk 0:02:53.4]} 14... Nd6 {[%clk 0:02:50.1]} 15. Rc1
{[%clk 0:02:51]} 15... O-O {[%clk 0:02:46.1]} 16. e4 {[%clk 0:02:06.6]} 16...
Rfc8 {[%clk 0:02:47]} 17. Rxc8+ {[%clk 0:01:59.6]} 17... Rxc8 {[%clk 0:02:48.9]}
18. Kd2 {[%clk 0:02:01.1]} 18... a6 {[%clk 0:02:29.6]} 19. Bd3 {[%clk 0:02:01]}
19... Bxd3 {[%clk 0:02:28.5]} 20. Kxd3 {[%clk 0:02:02.9]} 20... Nb5 {[%clk
0:02:27.6]} 21. Bb6 {[%clk 0:02:01.9]} 21... Kf8 {[%clk 0:02:21]} 22. a4 {[%clk
0:02:01.9]} 22... Nd6 {[%clk 0:02:20.1]} 23. b4 {[%clk 0:01:56.2]} 23... Ke8
{[%clk 0:02:20.7]} 24. Bc5 {[%clk 0:01:48.6]} 24... Rd8 {[%clk 0:02:19.7]} 25.
Ke2 {[%clk 0:01:38.6]} 25... Nc8 {[%clk 0:02:03.4]} 26. Rc1 {[%clk 0:01:40.1]}
26... Nd7 {[%clk 0:01:57.1]} 27. Nxd7 {[%clk 0:01:36.7]} 27... Kxd7 {[%clk
0:01:59]} 28. Bd4 {[%clk 0:01:36.6]} 28... f6 {[%clk 0:01:58.1]} 29. e5 {[%clk
0:01:38.1]} 29... f5 {[%clk 0:01:56.1]} 30. b5 {[%clk 0:01:39.7]} 30... axb5
{[%clk 0:01:51.5]} 31. axb5 {[%clk 0:01:41.6]} 31... Ke8 {[%clk 0:01:30.4]} 32.
Rc7 {[%clk 0:01:02.4]} 32... Rxd4 {[%clk 0:01:29.9]} 33. Rxc8+ {[%clk
0:01:03.5]} 33... Rd8 {[%clk 0:01:31.4]} 34. Rc7 {[%clk 0:00:58]} 34... Rd7
{[%clk 0:01:33.3]} 35. Rc8+ {[%clk 0:00:58.9]} 35... Rd8 {[%clk 0:01:35.2]} 36.
Rc7 {[%clk 0:00:59.3]} 36... Rd7 {[%clk 0:01:36.5]} 37. Rc8+ {[%clk 0:00:59.2]}
1/2-1/2

[Event "*** Titled Tuesday Blitz"]
[Site "Chess.com"]
[Date "2019.05.07"]
[Round "6"]
[White "Koksal06"]
[Black "HansCoolNiemann"]
[Result "1-0"]
[WhiteElo "2506"]
[BlackElo "2495"]
[TimeControl "180+2"]
[EndTime "14:24:47 PDT"]
[Termination "Koksal06 won by resignation"]

1. d4 {[%clk 0:03:01.9]} 1... d5 {[%clk 0:02:51.6]} 2. c4 {[%clk 0:03:02.8]}
2... c6 {[%clk 0:02:52.3]} 3. Nc3 {[%clk 0:03:04.3]} 3... e6 {[%clk 0:02:52.1]}
4. e3 {[%clk 0:03:03]} 4... f5 {[%clk 0:02:53]} 5. Bd3 {[%clk 0:03:01.7]} 5...
Nf6 {[%clk 0:02:54]} 6. Nf3 {[%clk 0:03:03]} 6... Bd6 {[%clk 0:02:55.6]} 7. O-O
{[%clk 0:03:04]} 7... Nbd7 {[%clk 0:02:54.1]} 8. b3 {[%clk 0:03:05.1]} 8... a6
{[%clk 0:02:50.5]} 9. Bb2 {[%clk 0:03:06.1]} 9... O-O {[%clk 0:02:51.3]} 10. Ne2
{[%clk 0:03:05.6]} 10... Ne4 {[%clk 0:02:51.6]} 11. Ne5 {[%clk 0:03:06.3]} 11...
Nxe5 {[%clk 0:02:51.9]} 12. dxe5 {[%clk 0:03:07.3]} 12... Bc7 {[%clk 0:02:52.9]}
13. f3 {[%clk 0:03:07.2]} 13... Ng5 {[%clk 0:02:48.3]} 14. cxd5 {[%clk
0:03:04.1]} 14... exd5 {[%clk 0:02:48.8]} 15. f4 {[%clk 0:03:01.2]} 15... Ne4
{[%clk 0:02:48.8]} 16. Ng3 {[%clk 0:02:53.9]} 16... Be6 {[%clk 0:02:42.2]} 17.
Nxe4 {[%clk 0:02:54.1]} 17... fxe4 {[%clk 0:02:44.1]} 18. Be2 {[%clk 0:02:55.4]}
18... c5 {[%clk 0:02:37.9]} 19. Bg4 {[%clk 0:02:55.1]} 19... Qd7 {[%clk
0:02:37.2]} 20. f5 {[%clk 0:02:46.1]} 20... Bxf5 {[%clk 0:02:32.1]} 21. Rxf5
{[%clk 0:02:45]} 21... Rxf5 {[%clk 0:02:34]} 22. Bxf5 {[%clk 0:02:44]} 22...
Qxf5 {[%clk 0:02:33.9]} 23. Qxd5+ {[%clk 0:02:45.6]} 23... Qf7 {[%clk
0:02:33.1]} 24. e6 {[%clk 0:02:35.4]} 24... Qe7 {[%clk 0:02:12.2]} 25. Rf1
{[%clk 0:02:21.4]} 25... Rd8 {[%clk 0:01:52.4]} 26. Rf7 {[%clk 0:01:39.9]} 26...
Bxh2+ {[%clk 0:00:41.6]} 27. Kh1 {[%clk 0:01:39.9]} 27... Qh4 {[%clk 0:00:42.8]}
28. Rxg7+ {[%clk 0:01:33.9]} 28... Kh8 {[%clk 0:00:37]} 29. Qxd8+ {[%clk
0:01:23.1]} 29... Qxd8 {[%clk 0:00:33.1]} 30. Rd7+ {[%clk 0:01:24.1]} 1-0

[Event "*** Titled Tuesday Blitz"]
[Site "Chess.com"]
[Date "2019.05.07"]
[Round "6"]
[White "rookoco"]
[Black "DanielNaroditsky"]
[Result "1-0"]
[WhiteElo "2780"]
[BlackElo "3110"]
[TimeControl "180+2"]
[EndTime "14:24:54 PDT"]
[Termination "rookoco won by checkmate"]

1. e4 {[%clk 0:03:01.9]} 1... e5 {[%clk 0:03:01]} 2. Nf3 {[%clk 0:03:02.1]} 2...
Nc6 {[%clk 0:03:02.6]} 3. Bc4 {[%clk 0:03:02.9]} 3... Bc5 {[%clk 0:03:03.3]} 4.
O-O {[%clk 0:03:03.5]} 4... Nf6 {[%clk 0:03:04.9]} 5. d3 {[%clk 0:03:04.3]} 5...
a6 {[%clk 0:03:05.5]} 6. a4 {[%clk 0:03:04]} 6... Ba7 {[%clk 0:03:06.2]} 7. Nc3
{[%clk 0:03:01.4]} 7... d6 {[%clk 0:03:07]} 8. h3 {[%clk 0:03:02]} 8... h6
{[%clk 0:03:07]} 9. Ne2 {[%clk 0:03:00.9]} 9... g5 {[%clk 0:03:07.6]} 10. Ng3
{[%clk 0:02:59.3]} 10... g4 {[%clk 0:03:08.8]} 11. Nh4 {[%clk 0:03:00.2]} 11...
gxh3 {[%clk 0:03:09.5]} 12. Nhf5 {[%clk 0:02:56.5]} 12... Rg8 {[%clk 0:03:00.3]}
13. Qf3 {[%clk 0:02:52.2]} 13... Nd4 {[%clk 0:02:51]} 14. Nxd4 {[%clk
0:02:50.5]} 14... Bg4 {[%clk 0:02:50.4]} 15. Qe3 {[%clk 0:02:40.4]} 15... Bxd4
{[%clk 0:02:46.5]} 16. Qxh6 {[%clk 0:02:40.7]} 16... hxg2 {[%clk 0:02:14.8]} 17.
Kxg2 {[%clk 0:02:39]} 17... d5 {[%clk 0:01:48.6]} 18. exd5 {[%clk 0:02:27.3]}
18... Rg6 {[%clk 0:01:41.2]} 19. Qh8+ {[%clk 0:02:25.3]} 19... Rg8 {[%clk
0:01:42.4]} 20. Qh6 {[%clk 0:02:12.1]} 20... Qd7 {[%clk 0:01:37.3]} 21. Qxf6
{[%clk 0:01:48.6]} 21... Bh3+ {[%clk 0:01:37.4]} 22. Kh2 {[%clk 0:01:49.3]}
22... Bxf1 {[%clk 0:01:34.3]} 23. Nxf1 {[%clk 0:01:45.9]} 23... Rg6 {[%clk
0:01:05.9]} 24. Qh8+ {[%clk 0:01:45]} 24... Ke7 {[%clk 0:01:07.3]} 25. Qh4+
{[%clk 0:01:13.7]} 25... Kd6 {[%clk 0:01:08.5]} 26. Ng3 {[%clk 0:01:09.7]} 26...
f5 {[%clk 0:01:09.8]} 27. Qh5 {[%clk 0:00:59.9]} 27... Rf6 {[%clk 0:01:11.3]}
28. Bg5 {[%clk 0:00:56.8]} 28... Rff8 {[%clk 0:01:12.6]} 29. Qg6+ {[%clk
0:00:55.2]} 29... Kc5 {[%clk 0:01:13.9]} 30. c3 {[%clk 0:00:53.1]} 30... Bxc3
{[%clk 0:01:06.3]} 31. bxc3 {[%clk 0:00:52.6]} 31... Rg8 {[%clk 0:00:56]} 32.
Be3# {[%clk 0:00:52.2]} 1-0

[Event "*** Titled Tuesday Blitz"]
[Site "Chess.com"]
[Date "2019.05.07"]
[Round "6"]
[White "GelmanAlexander"]
[Black "korason34"]
[Result "1-0"]
[WhiteElo "2592"]
[BlackElo "2579"]
[TimeControl "180+2"]
[EndTime "14:24:58 PDT"]
[Termination "GelmanAlexander won by resignation"]

1. d4 {[%clk 0:03:01.9]} 1... d5 {[%clk 0:02:57.8]} 2. Nc3 {[%clk 0:03:02.5]}
2... Nf6 {[%clk 0:02:56.8]} 3. Bf4 {[%clk 0:03:03.7]} 3... e6 {[%clk 0:02:57.6]}
4. Nb5 {[%clk 0:03:04.2]} 4... Na6 {[%clk 0:02:58.4]} 5. e3 {[%clk 0:03:05.4]}
5... Bb4+ {[%clk 0:02:57.1]} 6. c3 {[%clk 0:03:05.3]} 6... Be7 {[%clk
0:02:58.6]} 7. Nf3 {[%clk 0:03:03.9]} 7... c6 {[%clk 0:02:58.1]} 8. Na3 {[%clk
0:03:04.7]} 8... O-O {[%clk 0:02:59.6]} 9. Bd3 {[%clk 0:02:51.2]} 9... Qb6
{[%clk 0:02:58.3]} 10. Rb1 {[%clk 0:02:45.6]} 10... c5 {[%clk 0:02:58]} 11. O-O
{[%clk 0:02:41]} 11... c4 {[%clk 0:02:58.8]} 12. Bc2 {[%clk 0:02:37.7]} 12...
Nb8 {[%clk 0:03:00.2]} 13. e4 {[%clk 0:02:22.7]} 13... Nc6 {[%clk 0:02:56.1]}
14. e5 {[%clk 0:02:20.2]} 14... Nd7 {[%clk 0:02:52.3]} 15. Re1 {[%clk 0:02:11]}
15... Re8 {[%clk 0:02:50.9]} 16. h4 {[%clk 0:02:11.6]} 16... Nf8 {[%clk
0:02:51.7]} 17. Ng5 {[%clk 0:01:53.4]} 17... h6 {[%clk 0:02:15.6]} 18. Qh5
{[%clk 0:01:49.7]} 18... hxg5 {[%clk 0:02:12.4]} 19. hxg5 {[%clk 0:01:50.6]}
19... g6 {[%clk 0:02:09]} 20. Qh4 {[%clk 0:01:33]} 20... Nh7 {[%clk 0:01:08.2]}
21. Re3 {[%clk 0:01:33.8]} 21... Kg7 {[%clk 0:01:09.4]} 22. Qh6+ {[%clk
0:01:32.9]} 22... Kg8 {[%clk 0:01:10]} 23. Rh3 {[%clk 0:01:33.9]} 23... Bxa3
{[%clk 0:01:09.2]} 24. Qxh7+ {[%clk 0:01:30.1]} 24... Kf8 {[%clk 0:01:08.7]} 25.
bxa3 {[%clk 0:01:31.6]} 25... Qa5 {[%clk 0:01:09.4]} 26. Qh8+ {[%clk 0:01:23.3]}
26... Ke7 {[%clk 0:01:10.3]} 27. Qf6+ {[%clk 0:01:25.2]} 27... Kd7 {[%clk
0:01:11.8]} 28. Rh7 {[%clk 0:01:19.5]} 28... Re7 {[%clk 0:01:09.5]} 29. Rxf7
{[%clk 0:01:18.7]} 29... b5 {[%clk 0:01:07.5]} 30. Bxg6 {[%clk 0:01:09.7]} 30...
a6 {[%clk 0:01:00]} 31. Rxe7+ {[%clk 0:01:03.1]} 31... Nxe7 {[%clk 0:01:00.3]}
32. Bf7 {[%clk 0:01:04.7]} 32... Qb6 {[%clk 0:01:00.8]} 33. g6 {[%clk
0:01:05.4]} 33... Bb7 {[%clk 0:01:01.8]} 34. Bg5 {[%clk 0:01:04.4]} 1-0

[Event "*** Titled Tuesday Blitz"]
[Site "Chess.com"]
[Date "2019.05.07"]
[Round "6"]
[White "severomorskij"]
[Black "ShimanovAlex"]
[Result "0-1"]
[WhiteElo "2769"]
[BlackElo "2848"]
[TimeControl "180+2"]
[EndTime "14:25:00 PDT"]
[Termination "ShimanovAlex won by resignation"]

1. d4 {[%clk 0:03:01.9]} 1... Nf6 {[%clk 0:03:00.5]} 2. c4 {[%clk 0:03:02.9]}
2... e6 {[%clk 0:03:02.4]} 3. Nc3 {[%clk 0:03:03.8]} 3... d5 {[%clk 0:03:03.3]}
4. cxd5 {[%clk 0:03:03.4]} 4... exd5 {[%clk 0:03:02]} 5. Bg5 {[%clk 0:03:03.7]}
5... c6 {[%clk 0:03:03.4]} 6. e3 {[%clk 0:03:04.5]} 6... Qb6 {[%clk 0:03:05]} 7.
Bxf6 {[%clk 0:03:02.4]} 7... Qxb2 {[%clk 0:03:05.3]} 8. Rc1 {[%clk 0:02:37.4]}
8... gxf6 {[%clk 0:02:54.6]} 9. Bd3 {[%clk 0:02:36.4]} 9... Bg4 {[%clk
0:02:39.4]} 10. Nge2 {[%clk 0:01:48.7]} 10... Bxe2 {[%clk 0:02:37.3]} 11. Nxe2
{[%clk 0:01:43.3]} 11... Bb4+ {[%clk 0:02:38.2]} 12. Kf1 {[%clk 0:01:44.1]}
12... Qxa2 {[%clk 0:02:27]} 13. Rc2 {[%clk 0:01:33.4]} 13... Qa5 {[%clk
0:02:25.6]} 14. g3 {[%clk 0:01:23]} 14... Nd7 {[%clk 0:02:20.6]} 15. Kg2 {[%clk
0:01:24.1]} 15... Bd6 {[%clk 0:02:21.8]} 16. Nc3 {[%clk 0:01:21.2]} 16... Qd8
{[%clk 0:01:56.2]} 17. Qh5 {[%clk 0:01:19.5]} 17... Nb6 {[%clk 0:01:50.8]} 18.
Bf5 {[%clk 0:01:14.5]} 18... Bb4 {[%clk 0:01:48.2]} 19. e4 {[%clk 0:01:08.5]}
19... dxe4 {[%clk 0:01:29.6]} 20. Re1 {[%clk 0:01:08.3]} 20... h6 {[%clk
0:01:21.2]} 21. Rxe4+ {[%clk 0:01:06.4]} 21... Kf8 {[%clk 0:01:22.3]} 22. Ne2
{[%clk 0:00:39.5]} 22... Nd5 {[%clk 0:01:19.8]} 23. Nf4 {[%clk 0:00:30.7]} 23...
Nxf4+ {[%clk 0:01:19.4]} 24. Rxf4 {[%clk 0:00:32.6]} 24... Qd5+ {[%clk
0:01:20.6]} 25. Kh3 {[%clk 0:00:29.3]} 25... Bd6 {[%clk 0:01:17]} 26. Re4 {[%clk
0:00:29.9]} 26... a5 {[%clk 0:01:14.9]} 27. Rce2 {[%clk 0:00:28.7]} 27... a4
{[%clk 0:01:14.2]} 28. Qh4 {[%clk 0:00:27.5]} 28... Qxf5+ {[%clk 0:01:14]} 29.
g4 {[%clk 0:00:25.1]} 29... Qf3+ {[%clk 0:01:14.1]} 0-1

[Event "*** Titled Tuesday Blitz"]
[Site "Chess.com"]
[Date "2019.05.07"]
[Round "6"]
[White "Heineccius"]
[Black "fidezivkovic"]
[Result "1-0"]
[WhiteElo "2500"]
[BlackElo "2283"]
[TimeControl "180+2"]
[EndTime "14:25:16 PDT"]
[Termination "Heineccius won on time"]

1. d4 {[%clk 0:03:01.9]} 1... Nf6 {[%clk 0:02:59.8]} 2. c4 {[%clk 0:03:03]} 2...
e6 {[%clk 0:02:59.9]} 3. Nc3 {[%clk 0:03:02.5]} 3... Bb4 {[%clk 0:02:59.9]} 4.
g3 {[%clk 0:03:03.1]} 4... c5 {[%clk 0:02:59]} 5. Nf3 {[%clk 0:03:03.5]} 5...
cxd4 {[%clk 0:02:54.6]} 6. Nxd4 {[%clk 0:03:03.4]} 6... Qa5 {[%clk 0:02:54.8]}
7. Qc2 {[%clk 0:02:49.4]} 7... Ne4 {[%clk 0:02:46.8]} 8. Bg2 {[%clk 0:02:49]}
8... Nxc3 {[%clk 0:02:41.3]} 9. O-O {[%clk 0:02:49.2]} 9... Na4 {[%clk
0:02:30.5]} 10. a3 {[%clk 0:02:20.2]} 10... Be7 {[%clk 0:02:26.9]} 11. Nb5
{[%clk 0:01:29.7]} 11... Na6 {[%clk 0:02:08.1]} 12. b4 {[%clk 0:01:22.3]} 12...
Qd8 {[%clk 0:01:58.2]} 13. Qxa4 {[%clk 0:01:21.9]} 13... O-O {[%clk 0:01:57.6]}
14. c5 {[%clk 0:01:17.9]} 14... Nc7 {[%clk 0:01:51.7]} 15. Nd6 {[%clk
0:01:03.2]} 15... Bxd6 {[%clk 0:01:44.2]} 16. cxd6 {[%clk 0:01:04]} 16... Nd5
{[%clk 0:01:44.4]} 17. e4 {[%clk 0:00:56.9]} 17... Nb6 {[%clk 0:01:40.3]} 18.
Qb3 {[%clk 0:00:57.6]} 18... e5 {[%clk 0:01:29.6]} 19. Be3 {[%clk 0:00:56.7]}
19... Kh8 {[%clk 0:00:53.5]} 20. a4 {[%clk 0:00:56.7]} 20... Qf6 {[%clk
0:00:28.8]} 21. a5 {[%clk 0:00:53.5]} 1-0